Cogmind - Beta 17 @@@ ROGUE MODE // 2026.07.15 @ 19:10:31 Player: Suffixing Result: Destroyed by 3B-159(R) with Subdweller Machine Gun Performance ------------- Evolutions (0) 0 Regions Visited (2) 400 Robots Destroyed (27) 135 Value Destroyed (766) 766 Prototype IDs (1) 20 Alien Tech Used (0) 0 Bonus (5600) 5600 TOTAL SCORE: 6921 Bonus ------- Prayed to X0-1V1 5000 Major X0-1V1 Interference 600 Cogmind --------- Core Integrity 0/150 Matter 652/700 Energy 246/250 System Corruption 9% Temperature Cool (2) Movement Treading (240) Ox1 Location -10/Subcaves Parts ------- > --- POWER (1) -------- Ion Engine > --- PROPULSION (2) --- Improved Treads Improved Treads > --- UTILITY (2) ------ Huge Storage Unit X0-1V1's Piety Tracker > --- WEAPON (2) ------- Battle Cannon > --- INVENTORY (26) --- Subdweller Power Source Subdweller Power Source Light Treads Light Treads Wheel Subdweller Monowheel Subdweller Monowheel Improved Heat Sink Improved Heat Sink Large Storage Unit Subdweller Optics Subdweller Optics Light Armor Plating Scrap Shield Subdweller Laser Subdweller Beam Cannon Subdweller Beam Cannon Subdweller Machine Gun Plasma Cutter Peak State ------------ > --- POWER ------------ Light Nuclear Core > --- PROPULSION ------- Improved Treads Improved Treads > --- UTILITY ---------- Huge Storage Unit X0-1V1's Piety Tracker > --- WEAPON ----------- Heavy EM Pulse Gun Heavy EM Pulse Gun > --- INVENTORY -------- Ion Engine Ion Engine Subdweller Power Source Light Treads Light Treads Light Treads Improved Treads Improved Treads Wheel Subdweller Monowheel Improved Heat Sink Improved Heat Sink Large Storage Unit Subdweller Optics Light Armor Plating Scrap Shield Heavy EM Pulse Gun Riot Gun Subdweller Laser Subdweller Beam Cannon Subdweller Machine Gun Plasma Cutter [Rating: 29] Favorites ----------- Power Light Nuclear Core Engine Ion Engine Power Core Light Nuclear Core Propulsion Improved Treads Treads Improved Treads Leg Aluminum Leg Utility Huge Storage Unit Device X0-1V1's Piety Tracker Storage Huge Storage Unit Weapon Heavy EM Pulse Gun Energy Gun Heavy EM Pulse Gun Energy Cannon Subdweller Beam Cannon Ballistic Gun Assault Rifle Ballistic Cannon Battle Cannon Special Weapon Plasma Cutter Build | -11 -10 -10 ------- Run | Yrd Mat Sub Slots Evolved . | . . . Power . | . . . Propulsion . | . . . Utility . | . . . Weapon . | . . . Parts Attached 22 | 3 8 11 Power 3 | . 1 2 Engine 2 | . . 2 Core 1 | . 1 . Reactor . | . . . Propulsion 6 | 2 2 2 Treads 6 | 2 2 2 Leg . | . . . Wheel . | . . . Hover . | . . . Flight . | . . . Utility 4 | . 3 1 Device 2 | . 1 1 Storage 2 | . 2 . Processor . | . . . Hackware . | . . . Protection . | . . . Artifact . | . . . Weapon 9 | 1 2 6 Energy Gun 5 | . 2 3 Energy Cannon 1 | . . 1 Ballistic Gun 1 | 1 . . Ballistic Cannon 1 | . . 1 Launcher . | . . . Special Weapon 1 | . . 1 Impact Weapon . | . . . Slashing Weapon . | . . . Piercing Weapon . | . . . Special Melee Weapon . | . . . Unidentified Prototypes 1 | . 1 . Parts Lost 10 | . . 10 Power 2 | . . 2 Propulsion 2 | . . 2 Utility 1 | . . 1 Weapon 5 | . . 5 Highest Loss Streak 6 | . . 6 To Critical Strikes . | . . . Average Backups 15 | 6 9 18 Power 1 | 1 1 2 Propulsion 5 | 4 3 6 Utility 4 | . 2 6 Weapon 2 | 1 1 2 Tool/Special . | . . . Unused Backups 20 | . 4 16 Power 4 | . 2 2 Propulsion 3 | . . 3 Utility 8 | . . 8 Weapon 5 | . 2 3 Tool/Special . | . . . Average Slot Usage (%) 91 | . 85 95 Engine 6 | . 5 6 Core 7 | . 8 7 Treads 27 | . 27 27 Device 7 | . . 13 Storage 14 | . 14 14 Energy Gun 21 | . 22 21 Ballistic Gun 2 | . 5 . Ballistic Cannon 1 | . . 1 Peak Build Rating 29 | 6 27 29 Average Rating 19 | 6 10 26 On Entrance 13 | 6 6 27 Avg Prop Armor Cover (%) . | . . . Naked Turns . | . . . Heaviest Build 97 | 13 92 97 Greatest Support 46 | 40 46 46 Greatest Overweight (x) 2 | . 2 2 Average Overweight (x) . | . . 1 Largest Inventory Capacity 26 | 8 25 26 Average Capacity 21 | 8 16 25 Most Carried 25 | 6 16 25 Average Carried 15 | 4 10 19 Final Capacity 26 | 8 25 26 Final Carried 20 | 2 15 20 Class Distribution -------------------- 83% | Mutant 16% | Hauler-Mutant Dominant Class ---------------- Mutant | -10/Materials Mutant | -10/Subcaves Resources | -11 -10 -10 ----------- Run | Yrd Mat Sub Matter Collected 901 | 200 162 539 Remotely . | . . . Salvage Created 1090 | . 429 661 Parts 57 | . 26 31 Haulers Intercepted 2 | . 2 . Recyclers Shooed . | . . . Parts Field Recycled . | . . . Retrieved Matter . | . . . Parts Self-Destructed 20 | . . 20 Prevented . | . . . Parts Restored . | . . . Kills | -11 -10 -10 ------- Run | Yrd Mat Sub Combat Hostiles Destroyed 24 | . 9 15 Guns 15 | . 6 9 Cannons 3 | . . 3 AOE 4 | . 3 1 Classes Destroyed 5 | . 4 1 Hauler 2 | . 2 . Operator 1 | . 1 . Swarmer 7 | . 3 4 Grunt 11 | . 6 5 Subdweller 6 | . . 6 Best Kill Streak 4 | . 3 4 Combat Bots Only 4 | . 3 4 Max Kills in Single Turn 3 | . 3 1 Gunslinging . | . . . Exploded 3 | . 3 1 Melee . | . . . Uniques/NPCs Destroyed . | . . . Combat | -11 -10 -10 -------- Run | Yrd Mat Sub Hostile Shots Fired 114 | . 32 82 Missed 40 | . 12 28 Hits 74 | . 20 54 Projectile 74 | . 20 54 AOE 5 | . . 5 Critical Strikes 2 | . . 2 Damage Taken 1315 | . 331 984 Core 256 | . 18 238 Absorbed by Shields . | . . . Regen/Repaired (Parts) 95 | . 95 . Core Remaining (%) 100 | 100 . . Volleys Fired 81 | . 32 49 Largest 2 | . 2 2 Hottest 130 | . 90 130 Shots Fired 151 | . 64 87 Gun 135 | . 64 71 Cannon 16 | . . 16 Launcher . | . . . Special . | . . . Kinetic 50 | . 48 2 Thermal 14 | . . 14 Explosive . | . . . Electromagnetic 87 | . 16 71 Robot Hit Streak 24 | . 8 24 Robot Miss Streak 5 | . 2 5 Penetration Max . | . . . Secondary Targets 4 | . 2 2 Max Gunslinging Chain 1 | . 1 1 Shots Hit Robots 97 | . 44 53 Core Hits 40 | . 22 18 Critical Kills 1 | . . 1 Critical Parts Destroyed . | . . . Critical Strikes 5 | . 1 4 Meltdown 1 | . . 1 Corrupt 4 | . 1 3 Melee Attacks . | . . . Impact . | . . . Slashing . | . . . Piercing . | . . . Sneak Attacks . | . . . Combat Hostiles . | . . . Follow-up Attacks . | . . . Damage Inflicted 1678 | . 829 849 Guns 1140 | . 530 610 Cannons 193 | . . 193 Explosions 332 | . 286 46 Melee . | . . . Ramming 13 | . 13 . Kinetic 371 | . 371 . Thermal 299 | . 60 239 Explosive 226 | . 226 . Electromagnetic 769 | . 159 610 Impact . | . . . Slashing . | . . . Piercing . | . . . Highest Corruption 9 | . . 9 Average Corruption 9 | . . 9 Corruption Purged . | . . . Corruption Blocked . | . . . Effects 20 | . . 20 Message Errors 3 | . . 3 Matter Fused 4 | . . 4 Heat Flow Errors 6 | . . 6 Energy Discharges 2 | . . 2 Data Loss (minor) 2 | . . 2 Data Loss (major) 2 | . . 2 Misfires 1 | . . 1 Overload Shots . | . . . Overflow Damage 19 | . 16 3 Projectiles . | . . . Explosions 19 | . 16 3 Melee . | . . . Knockbacks . | . . . Impact . | . . . Kinetic . | . . . Secondary . | . . . Self-Inflicted Damage 71 | . 71 . Shots 1 | . 1 . Rammed 1 | . 1 . Targets Rammed 1 | . 1 . Kicked . | . . . Crushed . | . . . Highest Temperature 243 | . 120 243 Average Temperature 59 | . 30 87 Received Heat Transfer 252 | . 114 138 Siege Activations . | . . . Martial Activations . | . . . Shielding Activations . | . . . Robots Disrupted . | . . . Combat Hostiles . | . . . Robots Corrupted 2 | . . 2 Combat Hostiles 2 | . . 2 Parts Fried 8 | . 1 7 Impact Corruptions . | . . . Robots Melted 1 | . . 1 Combat Hostiles 1 | . . 1 Parts Melted 2 | . . 2 Heat Transferred 409 | . 100 309 Parts Sabotaged . | . . . Parts Stolen . | . . . Parts Stripped . | . . . Power Chain Reactions 2 | . 1 1 Alert | -11 -10 -10 ------- Run | Yrd Mat Sub Maximum Alert Level . | . . . Low Security (%) 100 | 100 100 . Level 1 . | . . . Level 2 . | . . . Level 3 . | . . . Level 4 . | . . . Level 5 . | . . . High Security . | . . . Max Security . | . . . Peak Influence 112 | . 112 . Initial . | . . . Average 22 | . 22 . Influence Increases 478 | . 288 190 Destroy 0b10 Robot/C 360 | . 180 180 Destroy 0b10 Robot/NC 15 | . 15 . Destroy Leader 54 | . 44 10 Successful Hack 7 | . 7 . Disable Machine 15 | . 15 . Destroy Structure 27 | . 27 . Influence Decreases 478 | . 256 222 Entered New Map 16 | . . 16 Time Decay 402 | . 256 146 Lost Part 60 | . . 60 Squads Dispatched . | . . . Investigation . | . . . Extermination . | . . . Reinforcement . | . . . Assault . | . . . Garrison . | . . . Intercept . | . . . Searches Triggered . | . . . Construction Impeded . | . . . Haulers Reinforced . | . . . Active Scanning Responses . | . . . Cargo Convoy Interrupts . | . . . Stealth | -11 -10 -10 --------- Run | Yrd Mat Sub Distress Signals . | . . . Communications Jammed . | . . . Distress Signals . | . . . Times Spotted 37 | . 18 19 Peak Tracking Total 4 | . 4 4 Tactical Retreats . | . . . Traps | -11 -10 -10 ------- Run | Yrd Mat Sub Traps Triggered 1 | . 1 . Indirectly . | . . . Trap Hack Attempts . | . . . Triggered . | . . . Disarmed 6 | . 6 . Reprogrammed . | . . . Reused . | . . . Traps Extracted . | . . . Installed . | . . . Triggered . | . . . Machines | -11 -10 -10 ---------- Run | Yrd Mat Sub Machines Disabled 1 | . 1 . Max in Single Turn 1 | . 1 . Machines Repaired . | . . . Machines Dismantled . | . . . Machines Sabotaged . | . . . Overloaded Fab Kills . | . . . Hacking | -11 -10 -10 --------- Run | Yrd Mat Sub Machines Accessed 6 | . 4 2 Terminals 3 | . 3 . Fabricators . | . . . Repair Stations 1 | . 1 . Recycling Units . | . . . Scanalyzers . | . . . Garrison Access . | . . . Total Hacks 11 | . 9 2 Successful 7 | . 5 2 Failed 4 | . 4 . Catastrophic . | . . . Database Lockouts . | . . . Manual 2 | . 2 . Terminals 7 | . 7 . Fabricators . | . . . Repair Stations 2 | . 2 . Recycling Units . | . . . Scanalyzers . | . . . Garrison Access . | . . . Terminal Hacks 5 | . 3 2 Open Door 1 | . . 1 Locate Traps 1 | . 1 . Disarm Traps 1 | . 1 . Zone Layout 1 | . 1 . Release Object 1 | . . 1 Fabricator Hacks . | . . . Repair Station Hacks 2 | . 2 . Scan Component 1 | . 1 . Repair 1 | . 1 . Recycling Unit Hacks . | . . . Scanalyzer . | . . . Garrison Access Hacks . | . . . Unauthorized Hacks . | . . . Terminals . | . . . Fabricators . | . . . Repair Stations . | . . . Recycling Units . | . . . Scanalyzers . | . . . Garrison Access . | . . . Data Cores Recovered 1 | . 1 . Used . | . . . Hacking Detections 1 | . 1 . Full Trace Events . | . . . Feedback Events . | . . . Feedback Blocked . | . . . Robot Schematics Acquired . | . . . Robots Built . | . . . Authchips . | . . . Time . | . . . Total Robot Build Rating . | . . . Part Schematics Acquired . | . . . Parts Built . | . . . Authchips . | . . . Time . | . . . Total Part Build Rating . | . . . Part Studies Acquired . | . . . Parts Repaired 1 | . 1 . Time 26 | . 26 . Parts Recycled . | . . . Recycled Matter . | . . . Retrieved Matter . | . . . Retrieved Components . | . . . Parts Scanalyzed . | . . . Part Schematics Acquired . | . . . Parts Damaged . | . . . Bothacking | -11 -10 -10 ------------ Run | Yrd Mat Sub Used RIF Installer . | . . . Robots Hacked . | . . . Non-combat . | . . . Combat . | . . . Robot Hacks Applied . | . . . Relay Couplers Released . | . . . Fabnet Peak Effective % . | . . . Robots Rewired . | . . . Allies Hacked . | . . . Hacks Repelled . | . . . Allies | -11 -10 -10 -------- Run | Yrd Mat Sub Total Allies . | . . . Largest Group . | . . . Highest-Rated Group . | . . . Highest-Rated Ally . | . . . Total Orders . | . . . Ally Attacks . | . . . Total Damage . | . . . Kills . | . . . Allies Corrupted . | . . . Allies Melted . | . . . X0-1V1 Amusement Gains 39 | . 9 30 Good Acts 4 | . . 4 Bad Acts 6 | . . 6 Intel | -11 -10 -10 ------- Run | Yrd Mat Sub Active Infowar (turns) . | . . . Robot Analysis Total . | . . . Derelict Logs Recovered 2 | . . 2 Drone Launches . | . . . Drone Recoveries . | . . . Exploration | -11 -10 -10 ------------- Run | Yrd Mat Sub Turns Passed 3330 | 7 1390 1933 Spaces Moved 1307 | 1 596 710 Core . | . . . Treads 1307 | 1 596 710 Legs . | . . . Wheels . | . . . Hover . | . . . Flight . | . . . Fastest Speed 160 | 160 160 240 Average Speed 226 | 160 202 246 Slowest Speed 320 | 160 320 320 Overloaded Moves . | . . . Propulsion Burnouts . | . . . Robots Hopped . | . . . Potential Cave-ins . | . . . Cave-ins Triggered . | . . . Exploration Rate (%) 44 | 2 86 46 Regions Visited 2 Branch Regions 1 Pre-discovered Areas . | . . . Known Exits Taken . | . . . Unknown Exits Taken 2 | 1 1 . Scrap Searched 1 | . . 1 Spaces Dug . | . . . Terrain Destroyed 48 | . 45 3 Melee . | . . . Projectile . | . . . AOE 48 | . 45 3 Terrain Rammed . | . . . Walls Destroyed . | . . . Machines Disabled . | . . . Actions | -11 -10 -10 --------- Run | Yrd Mat Sub Total 1539 | 7 718 814 Wait 76 | . 59 17 Move 1305 | . 595 710 Hop . | . . . Pick Up 36 | . 18 18 Fast Attach 1 | . 1 . Attach 11 | . 2 9 Detach . | . . . Swap 14 | 3 5 6 Drop 14 | 4 5 5 Fire 81 | . 32 49 Melee . | . . . Ram . | . . . Kick . | . . . Crush 1 | . 1 . Escape Stasis . | . . . Rewire . | . . . Trap . | . . . Miscellaneous . | . . . Route ------- -11/Scrapyard -10/Materials (discovered 5 exits: [*Mat x2] / [*Min x2] / *Sub) -10/Subcaves (discovered 1 exit: [*Mat]) History --------- Turn | Location | Event 8 | -11/Scrapyard | Discovered new exit (range 0) 8 | -11/Scrapyard | Entered Materials 303 | -10/Materials | Build established: Mutant 387 | -10/Materials | Discovered new exit (range 10) 578 | -10/Materials | Discovered new exit (range 14) 767 | -10/Materials | Discovered new exit (range 16) 798 | -10/Materials | Discovered new exit (range 15) 1248 | -10/Materials | Repaired Lgt. Treads 1372 | -10/Materials | Discovered new exit (range 8) 1386 | -10/Materials | Prayed at D.C.S.S. Altar Unit 1398 | -10/Materials | Entered Subcaves 1430 | -10/Subcaves | Learned Materials terminal intel 1466 | -10/Subcaves | X0-1V1 activates XOMVISION 2054 | -10/Subcaves | Shifting Twisted Machinery released Sub. Beam Cannon 2057 | -10/Subcaves | Shifting Twisted Machinery released Riot Gun 2370 | -10/Subcaves | X0-1V1 sent hostile G-34 Mercenary (x3) 2779 | -10/Subcaves | Inventory capacity permanently improved by X0-1V1 (+1; -100 max core) 2793 | -10/Subcaves | X0-1V1 sent hostile S-10 Pest (x4) 2855 | -10/Subcaves | Shifting Twisted Machinery released Scrap Shield 2888 | -10/Subcaves | A Subdweller sparked back to life 2888 | -10/Subcaves | A Subdweller sparked back to life 2888 | -10/Subcaves | A Subdweller sparked back to life 2897 | -10/Subcaves | Core integrity fell below 50% 2905 | -10/Subcaves | Core integrity fell below 20% 2933 | -10/Subcaves | Lost 6 parts (1p2n3w) 2956 | -10/Subcaves | Discovered new exit (range 16) 3080 | -10/Subcaves | Build established: Hauler-Mutant 3331 | -10/Subcaves | Destroyed by 3B-159(R) with Subdweller Machine Gun Last Messages --------------- 03077_ Sub. Optics melted. 03077_ Disposable Heat Sink melted. 03085_ System corrupted: Matter fused (-7). 03092_ Acquired Battle Cannon. 03096_ Acquired Sub. Beam Cannon. 03101_ JEY#SRD|CQEAB>OKVNL 03123_ Acquired derelict log, extracted data. Data stored: Mines entrances (x2). 03124_ System corrupted: Substantial component data lost. 03156_ System corrupted: Heat flow error (+222). 03198_ Subatomizers dissect the Sub. Laser. 03200_ Acquired 44 matter. 03208_ System corrupted: Heat flow error (+102). 03230_ System corrupted: Matter fused (-10). 03254_ System corrupted: Matter fused (-8). 03277_ System corrupted: Energy discharge (-97). 03306_ System corrupted: Matter fused (-10). 03322_ System corrupted: Energy discharge (-67). 03331_ X0-1V1 guffaws! Map ----- +----------------------------------------------------+ | | | ?????????????????????????????????????????????????? | | ?????????????????????????????????????????????????? | | ?????????????????????????????????????????????????? | | ?????????????????????????????????????????????????? | | ?????????????????????????????????????????????????? | | ?????????????????????????????????????????????????? | | ?????????????????????????????????????????????????? | | ?????????????????????????????????????????????????? | | ?????????????????????????????????????????????????? | | ?????????????????????????????????????????????????? | | ?????????????????????????????????????????????????? | | ?????????????????????????????????????????????????? | | ?????????????????????????????????????????????????? | | ?????????????????????????????????????????????????? | | ?????????????????????????????????????? ??????????? | | ???????????????????????????????????? ##?????????? | | ????????????????????????########??#" "###???????? | | ??????????????????????###"" # ## " ##??????? | | ??????????????????????# """" ???? | | ???????????????????????#""" ##???????? | | ????????????????""?##### #"# # # ???? | | ????????????????"""?" "#" ???? | | ?????????????????#""??# #" ????? | | ??????????????????# ##### ""### #???????? | | ?????????????????## R @"###?? #???????? | | ?????????????????#" "##????? ###???????? | | ?????????????????#"" ""##?????? ##????????? | | ?????????????????##" "" ##????# #????????? | | ??????????????????##### " ##?## #????????? | | ??????????????????????## ### #????????? | | ???????????????????????## ## #????????? | | ????????????????????????## ## ##?????????? | | ?????????????????????????### #???????????? | | ???????????????????????????### #####???????????? | | ??????????????????#????????#### #??#####????????? | | ??????????????????# ##### ### ##???????? | | ?????????????????# #???????? | | ????????????????????# #???????? | | ????????????????????## ##??#???? | | ?????????????????????## #### ## ##??? | | ??????????????????????# ???# ###? | | ??????????????????????# ????# | | ??????????????????????## ?????# | | ???????????????????????#??????# ##### | | ?????????????????????????????## ##????????? | | ?????????????????????????????# #?????????? | | ?????????????????????????????# #?????????? | | ?????????????????????????????# #?????????? | | ?????????????????????????????# ##?????????? | +----------------------------------------------------+ Best States ------------- Heat Dissipation 25 Energy Generation 14 Energy Capacity 250 Matter Stores 690 Matter Capacity 700 Sight Range 16 Terrain Scan Density 10 Evasion (%) 40 Recoil Reduction 2 Item Schematics ----------------- None Robot Schematics ------------------ None Fabricated ------------ Nothing Repaired ---------- Lgt. Treads | 32% | -10/Materials Studied --------- None Alien Tech Used ----------------- None Achievements -------------- None Challenges ------------ None Game ------ Seed ShadingTrapBeam Manual? 0 Play Time 00:15:17 Cumulative 49.4 hours Start 2026.07.15 @ 18:35:33 End 2026.07.15 @ 19:10:31 Sessions 1 Manual Loads 0 Difficulty Rogue Special Mode None Game No. 216 Rogue 171 Adventurer 45 Explorer 0 Win Type - Total 1 Types 1/0/0/0/0/0/0/0/0/0 Lore% 59 Gallery% 40 Achievement% 33 Wizard Run 0 Options --------- Layout 1 ASCII 0 Keyboard 0 Movement Numpad Keybinds 0 Fullscreen 1 Font 24/Smallcaps Map View 50x35 Zoom Use 0% Tactical HUD 1 Map Filters NONE Filters NONE Steam 1 RUN: 101175a5-a08a-4302-a3b7-bb1f3f3a457a